Cogmind - Beta 15 @@@ ROGUE MODE // 2025.10.05 @ 03:37:19 Player: shapeshifter Result: Destroyed by Piercing Trap Performance ------------- Evolutions (0) 0 Regions Visited (2) 400 Robots Destroyed (40) 200 Value Destroyed (1006) 1006 Prototype IDs (0) 0 Alien Tech Used (0) 0 Bonus (0) 0 TOTAL SCORE: 1606 Bonus ------- None Cogmind --------- Core Integrity 0/250 Matter 257/300 Energy 248/250 System Corruption 0% Temperature Cool (0) Movement Rolling (105) Ox1 Location -10/Subcaves Parts ------- > --- POWER (1) -------- Ion Engine > --- PROPULSION (2) --- Armored Wheel Armored Wheel > --- UTILITY (2) ------ Large Storage Unit Core Shielding > --- WEAPON (2) ------- Subdweller Laser Barrage Gun > --- INVENTORY (15) --- Arachnoskeleton Improved Heat Sink High-capacity Battery (250) Core Shielding Hardened Light Armor Plating Hardened Light Armor Plating Hardened Light Armor Plating Makeshift Light Armor Plating Makeshift Kinetic Plating Makeshift Hacking Suite Grenade Launcher Plasma Cutter Peak State ------------ > --- POWER ------------ Ion Engine > --- PROPULSION ------- Armored Wheel Armored Wheel > --- UTILITY ---------- Large Storage Unit Hardened Light Armor Plating > --- WEAPON ----------- Heavy EM Pulse Gun Riot Gun > --- INVENTORY -------- Armored Wheel Improved Heat Sink High-capacity Battery Core Shielding Core Shielding Hardened Light Armor Plating Hardened Light Armor Plating Hardened Light Armor Plating Makeshift Kinetic Plating Makeshift Hacking Suite Heavy EM Pulse Gun Subdweller Laser Barrage Gun Grenade Launcher Plasma Cutter [Rating: 16] Favorites ----------- Power Ion Engine Engine Ion Engine Propulsion Armored Wheel Treads Light Treads Wheel Armored Wheel Utility Large Storage Unit Device Seismic Detector Storage Large Storage Unit Hackware Hacking Suite Protection Hardened Light Armor Plating Weapon Heavy EM Pulse Gun Energy Gun Heavy EM Pulse Gun Ballistic Gun Assault Rifle Launcher Grenade Launcher Build | -11 -10 -10 ------- Run | Yrd Mat Sub Slots Evolved . | . . . Power . | . . . Propulsion . | . . . Utility . | . . . Weapon . | . . . Parts Attached 27 | 6 10 11 Power 3 | 1 1 1 Engine 3 | 1 1 1 Core . | . . . Reactor . | . . . Propulsion 8 | 2 4 2 Treads 2 | 2 . . Leg . | . . . Wheel 6 | . 4 2 Hover . | . . . Flight . | . . . Utility 6 | 1 3 2 Device 1 | . 1 . Storage 2 | 1 1 . Processor . | . . . Hackware 1 | . 1 . Protection 2 | . . 2 Artifact . | . . . Weapon 10 | 2 2 6 Energy Gun 6 | . 2 4 Energy Cannon . | . . . Ballistic Gun 3 | 2 . 1 Ballistic Cannon . | . . . Launcher 1 | . . 1 Special Weapon . | . . . Impact Weapon . | . . . Slashing Weapon . | . . . Piercing Weapon . | . . . Special Melee Weapon . | . . . Unidentified Prototypes . | . . . Parts Lost 6 | . . 6 Power 1 | . . 1 Propulsion 1 | . . 1 Utility . | . . . Weapon 4 | . . 4 Highest Loss Streak 2 | . . 2 To Critical Strikes . | . . . Average Backups 12 | 3 12 14 Power . | . 1 . Propulsion 1 | 1 1 1 Utility 7 | . 6 8 Weapon 2 | . 2 2 Tool/Special . | . . . Unused Backups 14 | . 3 11 Power . | . . . Propulsion 2 | . 1 1 Utility 10 | . 1 9 Weapon 1 | . 1 . Tool/Special 1 | . . 1 Average Slot Usage (%) 99 | . 99 99 Engine 14 | . 14 14 Treads 5 | . 12 . Wheel 22 | . 15 27 Storage 14 | . 14 14 Hackware 10 | . 11 8 Protection 3 | . . 5 Energy Gun 18 | . 11 25 Ballistic Gun 8 | . 16 2 Peak Build Rating 16 | 6 15 16 Average Rating 12 | 5 11 15 On Entrance 7 | . 6 15 Naked Turns . | . . . Heaviest Build 37 | 12 31 37 Greatest Support 40 | 40 40 24 Greatest Overweight (x) 3 | . 1 3 Average Overweight (x) . | . . 1 Largest Inventory Capacity 15 | 8 15 15 Average Capacity 14 | 7 14 15 Most Carried 15 | 6 15 15 Average Carried 12 | 4 12 14 Final Capacity 15 | 8 15 15 Final Carried 15 | 6 15 14 Class Distribution -------------------- 100% | Mutant Dominant Class ---------------- Mutant | -10/Materials Mutant | -10/Subcaves Resources | -11 -10 -10 ----------- Run | Yrd Mat Sub Matter Collected 721 | 292 332 97 Remotely . | . . . Salvage Created 1308 | 77 687 544 Parts 94 | 9 47 38 Haulers Intercepted 1 | . 1 . Recyclers Shooed . | . . . Parts Field Recycled . | . . . Retrieved Matter . | . . . Parts Self-Destructed 6 | . . 6 Prevented 5 | . . 5 Kills | -11 -10 -10 ------- Run | Yrd Mat Sub Combat Hostiles Destroyed 32 | . 17 15 Guns 29 | . 17 12 AOE 3 | . . 3 Classes Destroyed 7 | 1 5 1 Tunneler 4 | 4 . . Hauler 1 | . 1 . Operator 1 | . 1 . Watcher 2 | . 2 . Swarmer 10 | . 6 4 Grunt 13 | . 11 2 Subdweller 9 | . . 9 Best Kill Streak 5 | 2 5 4 Combat Bots Only 5 | . 5 4 Max Kills in Single Turn 2 | 1 2 2 Gunslinging 1 | . 1 . Exploded 2 | . . 2 Melee . | . . . Uniques/NPCs Destroyed . | . . . Combat | -11 -10 -10 -------- Run | Yrd Mat Sub Hostile Shots Fired 149 | . 72 77 Missed 43 | . 19 24 Hits 106 | . 53 53 Projectile 106 | . 53 53 Critical Strikes 6 | . 4 2 Actively Blocked 1 | . . 1 Damage Taken 1493 | . 574 919 Core 251 | . 98 153 Absorbed by Shields . | . . . Redirected to Shielding 3 | . . 3 Core Remaining (%) 100 | 100 . . Volleys Fired 104 | 8 48 48 Largest 2 | 2 2 2 Hottest 95 | 40 90 95 Shots Fired 204 | 16 96 92 Gun 203 | 16 96 91 Cannon . | . . . Launcher 1 | . . 1 Special . | . . . Kinetic 98 | 16 72 10 Thermal 4 | . . 4 Explosive 1 | . . 1 Electromagnetic 101 | . 24 77 Robot Hit Streak 20 | 4 10 20 Robot Miss Streak 3 | 2 3 2 Penetration Max . | . . . Secondary Targets 8 | . 6 2 Max Gunslinging Chain 1 | . 1 1 Shots Hit Robots 115 | 8 58 49 Core Hits 58 | 4 28 26 Critical Kills . | . . . Critical Parts Destroyed . | . . . Critical Strikes 2 | . 1 1 Corrupt 2 | . 1 1 Melee Attacks . | . . . Impact . | . . . Slashing . | . . . Piercing . | . . . Sneak Attacks . | . . . Combat Hostiles . | . . . Follow-up Attacks . | . . . Damage Inflicted 1894 | 93 795 1006 Guns 1589 | 93 795 701 Cannons . | . . . Explosions 305 | . . 305 Melee . | . . . Ramming . | . . . Kinetic 752 | 93 554 105 Thermal 250 | . . 250 Explosive 120 | . . 120 Electromagnetic 772 | . 241 531 Impact . | . . . Slashing . | . . . Piercing . | . . . Highest Corruption . | . . . Average Corruption . | . . . Corruption Purged . | . . . Corruption Blocked . | . . . Overload Shots . | . . . Overflow Damage . | . . . Projectiles . | . . . Explosions . | . . . Melee . | . . . Knockbacks . | . . . Impact . | . . . Kinetic . | . . . Secondary . | . . . Self-Inflicted Damage 40 | . . 40 Shots 1 | . . 1 Rammed . | . . . Targets Rammed . | . . . Kicked . | . . . Crushed . | . . . Highest Temperature 222 | . 222 24 Average Temperature 43 | . 54 8 Received Heat Transfer 555 | . 315 240 Siege Activations . | . . . Martial Activations . | . . . Shielding Activations . | . . . Robots Disrupted . | . . . Combat Hostiles . | . . . Robots Corrupted 1 | . 1 . Combat Hostiles . | . . . Parts Fried 5 | . 3 2 Impact Corruptions . | . . . Robots Melted . | . . . Combat Hostiles . | . . . Parts Melted . | . . . Heat Transferred 325 | . . 325 Parts Sabotaged . | . . . Parts Stolen . | . . . Parts Stripped . | . . . Power Chain Reactions 2 | . . 2 Alert | -11 -10 -10 ------- Run | Yrd Mat Sub Maximum Alert Level 1 | . 1 . Low Security (%) 70 | 100 63 . Level 1 29 | . 36 . Level 2 . | . . . Level 3 . | . . . Level 4 . | . . . Level 5 . | . . . High Security . | . . . Max Security . | . . . Peak Influence 281 | 5 281 . Initial . | . . . Average 132 | . 161 . Influence Increases 783 | 20 498 265 Destroy 0b10 Robot/C 460 | . 340 120 Destroy 0b10 Robot/NC 40 | 20 20 . Destroy Leader 76 | . 66 10 Successful Hack 11 | . 11 . Select Force Hacks 60 | . 60 . Destroy Structure 1 | . 1 . Lose Combat Pursuer 135 | . . 135 Influence Decreases 783 | 20 307 456 Entered New Map 92 | . . 92 Time Decay 640 | 20 307 313 Lost Part 51 | . . 51 Squads Dispatched 3 | . 3 . Investigation 2 | . 2 . Extermination . | . . . Reinforcement 1 | . 1 . Assault . | . . . Garrison . | . . . Intercept . | . . . Searches Triggered . | . . . Construction Impeded . | . . . Haulers Reinforced . | . . . Active Scanning Responses . | . . . Cargo Convoy Interrupts . | . . . Stealth | -11 -10 -10 --------- Run | Yrd Mat Sub Distress Signals 1 | . 1 . Communications Jammed . | . . . Distress Signals . | . . . Times Spotted 45 | . 23 22 Peak Tracking Total 6 | . 5 6 Tactical Retreats 2 | . . 2 Traps | -11 -10 -10 ------- Run | Yrd Mat Sub Traps Triggered 1 | . . 1 Indirectly . | . . . Trap Hack Attempts . | . . . Triggered . | . . . Disarmed . | . . . Reprogrammed . | . . . Reused . | . . . Traps Extracted . | . . . Installed . | . . . Triggered . | . . . Machines | -11 -10 -10 ---------- Run | Yrd Mat Sub Machines Disabled 1 | . . 1 Max in Single Turn 1 | . . 1 Machines Repaired . | . . . Machines Dismantled . | . . . Machines Sabotaged . | . . . Overloaded Fab Kills . | . . . Hacking | -11 -10 -10 --------- Run | Yrd Mat Sub Machines Accessed 7 | . 7 . Terminals 5 | . 5 . Fabricators . | . . . Repair Stations . | . . . Recycling Units 2 | . 2 . Scanalyzers . | . . . Garrison Access . | . . . Total Hacks 31 | . 31 . Successful 21 | . 21 . Failed 10 | . 10 . Catastrophic 1 | . 1 . Database Lockouts . | . . . Manual 24 | . 24 . Terminals 25 | . 25 . Fabricators . | . . . Repair Stations . | . . . Recycling Units 6 | . 6 . Scanalyzers . | . . . Garrison Access . | . . . Terminal Hacks 7 | . 7 . Branch Access Points 2 | . 2 . Fabricator Index 1 | . 1 . Registered Components 1 | . 1 . Zone Layout 3 | . 3 . Fabricator Hacks . | . . . Repair Station Hacks . | . . . Recycling Unit Hacks 4 | . 4 . Retrieve Components 4 | . 4 . Scanalyzer . | . . . Garrison Access Hacks . | . . . Unauthorized Hacks 10 | . 10 . Terminals 8 | . 8 . Botnet 3 | . 3 . Skim 5 | . 5 . Fabricators . | . . . Repair Stations . | . . . Recycling Units 2 | . 2 . Tunnel 2 | . 2 . Scanalyzers . | . . . Garrison Access . | . . . Data Cores Recovered . | . . . Used . | . . . Hacking Detections 5 | . 5 . Full Trace Events . | . . . Feedback Events . | . . . Feedback Blocked . | . . . Robot Schematics Acquired . | . . . Robots Built . | . . . Authchips . | . . . Time . | . . . Total Robot Build Rating . | . . . Part Schematics Acquired . | . . . Parts Built . | . . . Authchips . | . . . Time . | . . . Total Part Build Rating . | . . . Parts Repaired . | . . . Time . | . . . Parts Recycled . | . . . Recycled Matter . | . . . Retrieved Matter . | . . . Retrieved Components 7 | . 7 . Parts Scanalyzed . | . . . Part Schematics Acquired . | . . . Parts Damaged . | . . . Bothacking | -11 -10 -10 ------------ Run | Yrd Mat Sub Used RIF Installer . | . . . Robots Hacked . | . . . Non-combat . | . . . Combat . | . . . Robot Hacks Applied . | . . . Relay Couplers Released . | . . . Fabnet Peak Effective % . | . . . Robots Rewired . | . . . Allies Hacked . | . . . Hacks Repelled . | . . . Allies | -11 -10 -10 -------- Run | Yrd Mat Sub Total Allies . | . . . Largest Group . | . . . Highest-Rated Group . | . . . Highest-Rated Ally . | . . . Total Orders . | . . . Ally Attacks . | . . . Total Damage . | . . . Kills . | . . . Allies Corrupted . | . . . Allies Melted . | . . . Intel | -11 -10 -10 ------- Run | Yrd Mat Sub Active Infowar (turns) 95 | . 95 . Seismic 95 | . 95 . Robot Analysis Total . | . . . Derelict Logs Recovered 2 | . . 2 Drone Launches . | . . . Drone Recoveries . | . . . Exploration | -11 -10 -10 ------------- Run | Yrd Mat Sub Turns Passed 1872 | 172 774 926 Spaces Moved 1253 | 91 473 689 Core 13 | 13 . . Treads 207 | 78 129 . Legs . | . . . Wheels 1033 | . 344 689 Hover . | . . . Flight . | . . . Fastest Speed 50 | 50 100 105 Average Speed 113 | 144 119 105 Slowest Speed 160 | 160 160 135 Overloaded Moves . | . . . Propulsion Burnouts . | . . . Robots Hopped . | . . . Potential Cave-ins . | . . . Cave-ins Triggered . | . . . Exploration Rate (%) 48 | 7 91 47 Regions Visited 2 Branch Regions 1 Pre-discovered Areas 2 | . 2 . Known Exits Taken 1 | . 1 . Unknown Exits Taken 1 | 1 . . Scrap Searched 8 | . . 8 Spaces Dug . | . . . Terrain Destroyed 4 | . . 4 Melee . | . . . Projectile . | . . . AOE 4 | . . 4 Terrain Rammed . | . . . Walls Destroyed . | . . . Machines Disabled . | . . . Actions | -11 -10 -10 --------- Run | Yrd Mat Sub Total 1507 | 116 591 800 Wait 66 | . 27 39 Move 1251 | 90 472 689 Hop . | . . . Pick Up 41 | 12 21 8 Fast Attach 2 | . 2 . Attach 18 | 6 4 8 Detach . | . . . Swap 7 | . 4 3 Drop 18 | . 13 5 Fire 104 | 8 48 48 Melee . | . . . Ram . | . . . Kick . | . . . Crush . | . . . Escape Stasis . | . . . Rewire . | . . . Trap . | . . . Miscellaneous . | . . . Route ------- -11/Scrapyard -10/Materials (discovered 6 exits: *Mat x3 / *Min x2 / *Sub) -10/Subcaves (discovered 3 exits: Mat x2 / [*Rec]) History --------- Turn | Location | Event 17 | -11/Scrapyard | Discovered new exit (range 16) 173 | -11/Scrapyard | Entered Materials 301 | -10/Materials | Build established: Mutant 465 | -10/Materials | Discovered new exit (range 14) 533 | -10/Materials | Identified exit to Mines 546 | -10/Materials | Discovered new exit (range 12) 595 | -10/Materials | Discovered new exit (range 14) 636 | -10/Materials | Identified exit to Materials 636 | -10/Materials | Identified exit to Subcaves 670 | -10/Materials | Learned location of 2 exits from Materials 692 | -10/Materials | Learned location of 1 exit from Storage 704 | -10/Materials | Learned location of 1 exit from Storage 706 | -10/Materials | Learned location of 2 exits from Materials 707 | -10/Materials | Loaded intel: 7 trap records 709 | -10/Materials | Learned Storage emergency access door positions 721 | -10/Materials | Loaded intel: 35 machine locations 947 | -10/Materials | Entered Subcaves 948 | -10/Subcaves | Approached by a straggling Scientist 948 | -10/Subcaves | Identified exit to Materials 955 | -10/Subcaves | Learned Materials terminal intel 1265 | -10/Subcaves | Discovered new exit (range 16) 1282 | -10/Subcaves | Core integrity fell below 50% 1508 | -10/Subcaves | Disturbed a concealed Subdweller 1710 | -10/Subcaves | Core integrity fell below 20% 1815 | -10/Subcaves | A Subdweller sparked back to life 1815 | -10/Subcaves | A Subdweller sparked back to life 1815 | -10/Subcaves | A Subdweller sparked back to life 1848 | -10/Subcaves | Found Prototype Leg 1873 | -10/Subcaves | Destroyed by Piercing Trap Last Messages --------------- 01808_ Acquired derelict log, extracted data. Data stored: Mines entrances (x2). 01815_ MA-RR9(R) creaks and sparks as it begins to move. 01815_ XG-UVX(R) creaks and sparks as it begins to move. 01815_ US-I8H(R) creaks and sparks as it begins to move. 01817_ Hvy. EM Pulse Gun destroyed. 01818_ Critical hit (Destroy). 01821_ MA-RR9(R) destroyed. 01823_ Arm. Wheel destroyed. 01824_ US-I8H(R) affixes Scrap Shield Fragment to Scrap Shield. 01825_ XG-UVX(R) destroyed. 01825_ Switching to secondary target: US-I8H(R). 01834_ US-I8H(R) destroyed. 01838_ Acquired 23 matter. 01841_ Acquired 24 matter. 01845_ Dropped Hrd. Light Armor Plating. 01848_ Acquired Prototype Leg. 01873_ Triggered Piercing Trap. 01873_ Spikes shoot up from the floor. 01873_ Critical hit (Impale). Map ----- +----------------------------------------------------+ | " ????#" ### ##???????????????????????? | | #### "??### #?## #????????????????????????? | | ????# ""## #??## ##???????????????????????? | | ?????# "" #???# ####????????????????????? | | ?????### "" #???## ##???????????????????? | | ??????# "# ######## #???????????????????? | | ??????# ####### ## ## #???????????????????? | | ??????## ??????# #####???????????????? | | ??????#??????## ##??????????????? | | ????????????# # ## #??????????????? | | ????????????# ### ## #??????????????? | | #???????????# ##?### #### ##?????????????? | | # ?????????### ########??## #?????????????? | | ??# #??????### #?##### #?????????????? | | ??# #####?# ##?# #?????????????? | | ## " "## #??# #?????????????? | | =! #??### ##?????????????? | | =% ! ### ###??#### ##??????????????? | | !&* ! = #?# ##?### #?####???????????????? | | &"" " ## ##?## #????????????????????? | | ##### #### #### #?????????????????????? | | # #????####?## ## ####??????????????????? | | ####???????#### ##?????????????????? | | ???????????# ###???????????????? | | ??????????## # #???????????????? | | ??????????# ### @ ##???????????????? | | ??????????#### ###### ##????????????????? | | ????????????# ???? ##?????????????????? | | ????????????# ##### #???? #??????????????????? | | ????????????# ?????# #???? ??????????????????? | | ????????????# ?????? #?????# ?????????????????? | | ????????????# ?????? ?????? ????????????????? | | ???????????? ???????? ?????? ???????????????? | | ???????????? ???????? ??????##??????????????? | | ???????????? ???????? ??????????????????????? | | ?????????????????????? #?????????????????????? | | ?######?###??????????? ?????????????????????? | | ?# ## ????????????? ????????????????????? | | ?# ?????????????? ?????????????????????? | | ?# ???????????????????????????????????????? | | ?# #????????????????????????????????????????? | | ??# ##???????????????????????????????????????? | | ### #???????????????????????????????????????? | | # #???????????????????????????????????????? | | #####???????????????????????????????????? | | ## # #???????????????????????????????????? | | # # #????????????????????????????????????? | | #????????????????????????????????????? | | ## ## # ##???????????????????????????????????? | | ######## #???????????????????????????????????? | +----------------------------------------------------+ Best States ------------- Heat Dissipation 25 Energy Generation 10 Energy Capacity 250 Matter Stores 300 Matter Capacity 300 Sight Range 16 Terrain Scan Density 10 Armor Coverage 150 Core Shielding 20 Evasion (%) 50 Recoil Reduction 2 Offensive Hacking 10 Item Schematics ----------------- None Robot Schematics ------------------ None Fabricated ------------ Nothing Repaired ---------- Nothing Alien Tech Used ----------------- None Achievements -------------- None Challenges ------------ None Game ------ Seed ResetHeavySink Manual? 0 Play Time 00:10:33 Cumulative 353.3 hours Start 2025.10.05 @ 03:26:38 End 2025.10.05 @ 03:37:19 Sessions 1 Manual Loads 0 Difficulty Rogue Special Mode None Game No. 461 Rogue 461 Adventurer 0 Explorer 0 Win Type - Total 11 Types 6/0/1/2/1/0/1/0/0/0 Lore% 87 Gallery% 83 Achievement% 70 Wizard Run 0 Options --------- Layout 0 ASCII 0 Keyboard 0 Movement Mouse Keybinds 0 Fullscreen 1 Font 18/X11 Map View 76x50 Zoom Use 0% Tactical HUD 1 Map Filters NONE Filters NONE Steam 1 RUN: f6495b56-454a-461d-ba9c-9b290bff68c4